fUSD/lending_fUSD_20240704
["ID","MTS","AMOUNT","RATE_DAILY","PERIOD"]
[331171769,1720117841052,-151.0,0.00021983,7]
[331171771,1720117841061,-151.0,0.00021983,7]
[331171773,1720117841070,-151.0,0.00021983,7]
[331171775,1720117841080,-151.0,0.00021983,7]
[331171777,1720117841089,-151.0,0.00021983,7]
[331171779,1720117841098,-151.0,0.00021983,7]
[331171781,1720117841107,-151.0,0.00021983,7]
[331171783,1720117841118,-306.662129,0.00021983,7]
[331171785,1720117841128,-306.662129,0.00021983,7]
[331171787,1720117841137,-241.204496,0.00021983,7]
[331171789,1720117841147,-333.59866,0.00021983,7]
[331171791,1720117841156,-151.0,0.00021983,7]
[331171793,1720117841166,-333.59866,0.00021983,7]
[331171795,1720117841176,-282.674538,0.00021983,7]
[331171797,1720117841186,-151.0,0.00021983,7]
[331171799,1720117841196,-151.0,0.00021983,7]
[331171801,1720117841206,-282.674538,0.00021983,7]
[331171803,1720117841216,-151.0,0.00021983,7]
[331171805,1720117841225,-151.0,0.00021983,7]
[331171807,1720117841236,-2260.054881,0.00021983,7]
[331171809,1720117841247,-151.0,0.00021983,7]
[331171811,1720117841257,-151.0,0.00021983,7]
[331171813,1720117841268,-2260.054881,0.00021983,7]
[331171815,1720117841281,-151.0,0.00021983,7]
[331171818,1720117841290,-151.0,0.00021983,7]
[331171820,1720117841300,-151.0,0.00021983,7]
[331171822,1720117841310,-151.0,0.00021983,7]
[331171824,1720117841320,-151.0,0.00021983,7]
[331171826,1720117841329,-151.0,0.00021983,7]
[331171828,1720117841339,-151.0,0.00021983,7]
[331171830,1720117841348,-151.0,0.00021983,7]
[331171832,1720117841357,-1457.296038,0.00021983,7]
[331171834,1720117841367,-1457.296038,0.00021983,7]
[331171836,1720117841376,-151.0,0.00021983,7]
[331171838,1720117841386,-500.0,0.00021997,4]
[331171840,1720117841395,-526.12,0.00021997,4]
[331171842,1720117841405,-1167.06223859,0.00021997,4]
[331171845,1720117841417,-224.43776141,0.00021997,4]
[331171847,1720117841427,-446.21967941,0.00021997,4]
[331171849,1720117841439,-945.28032059,0.00021997,4]
[331171851,1720117841450,-50.65967941,0.00021997,4]
[331171856,1720117841490,-449.34032059,0.00021997,4]
[331171859,1720117841500,-500.0,0.00021997,4]
[331171861,1720117841510,-157.762428,0.00021998,7]
[331171863,1720117841520,-151.0,0.00021998,7]
[331171865,1720117841531,-243.883889,0.00021998,7]
[331171867,1720117841540,-151.0,0.00021998,7]
[331171869,1720117841550,-151.0,0.00021998,7]
[331171871,1720117841561,-151.0,0.00021998,7]
[331171873,1720117841573,-151.0,0.00021998,7]
[331171875,1720117841584,-151.0,0.00021998,7]
[331171877,1720117841594,-497.63332736,0.00021998,4]
[331171879,1720117841604,-151.0,0.00021998,7]
[331171881,1720117841615,-151.0,0.00021998,7]
[331171884,1720117841634,-169.93973,0.00021998,7]
[331171886,1720117841644,-169.93973,0.00021998,7]
[331171888,1720117841655,-151.0,0.00021998,7]
[331171890,1720117841666,-151.0,0.00021998,7]
[331171893,1720117841675,-500.0,0.00021998,4]
[331171895,1720117841685,-500.0,0.00021998,4]
[331171897,1720117841697,-500.0,0.00021998,4]
[331171899,1720117841706,-585.5178102,0.00021998,4]
[331171901,1720117841715,-500.0,0.00021998,4]
[331171903,1720117841725,-500.0,0.00021998,4]
[331171905,1720117841735,-500.0,0.00021998,4]
[331171907,1720117841744,-500.0,0.00021998,4]
[331171909,1720117841755,-500.0,0.00021998,4]
[331171911,1720117841765,-500.0,0.00021998,4]
[331171913,1720117841775,-1191.94,0.00021998,4]
[331171915,1720117841784,-1191.94,0.00021998,4]
[331171917,1720117841794,-500.0,0.00021998,4]
[331171920,1720117841804,-1235.5,0.00021998,4]
[331171922,1720117841813,-1235.5,0.00021998,4]
[331171924,1720117841823,-500.0,0.00021998,4]
[331171926,1720117841832,-500.0,0.00021998,4]
[331171928,1720117841842,-500.0,0.00021998,4]
[331171930,1720117841851,-1239.97,0.00021998,4]
[331171932,1720117841861,-1239.97,0.00021998,4]
[331171934,1720117841871,-1437.52003661,0.00021999,10]
[331171936,1720117841880,-379.42,0.00021999,4]
[331171938,1720117841890,-500.0,0.00021999,4]
[331171940,1720117841900,-500.0,0.00021999,4]
[331171942,1720117841909,-633.12,0.00021999,4]
[331171944,1720117841919,-500.0,0.00021999,4]
[331171947,1720117841929,-500.0,0.00021999,4]
[331171949,1720117841938,-500.0,0.00021999,4]
[331171951,1720117841947,-500.0,0.00021999,4]
[331171953,1720117841957,-500.0,0.00021999,4]
[331171955,1720117841967,-500.0,0.00021999,4]
[331171957,1720117841977,-500.0,0.00021999,4]
[331171959,1720117841987,-1427.13,0.00021999,4]
[331171961,1720117841996,-1427.13,0.00021999,4]
[331171963,1720117842006,-1427.13,0.00021999,4]
[331171965,1720117842016,-500.0,0.00021999,4]
[331171967,1720117842026,-500.0,0.00021999,4]
[331171969,1720117842036,-2.71272819,0.00021999,4]
[331171992,1720117842244,-497.28727181,0.00021999,4]
[331171995,1720117842259,-205.7887913,0.00021999,4]
[331171997,1720117842275,-294.2112087,0.00021999,4]
[331172000,1720117842288,-500.0,0.00021999,4]
[331172002,1720117842301,-500.0,0.00021999,4]
[331172004,1720117842312,-337.15084886,0.00021999,4]
[331172007,1720117842326,-162.84915114,0.00021999,4]
[331172009,1720117842337,-378.89084886,0.00021999,4]
[331172012,1720117842351,-813.04915114,0.00021999,4]
[331172014,1720117842363,-103.87525409,0.00021999,4]
[331172016,1720117842377,-396.12474591,0.00021999,4]
[331172019,1720117842389,-496.4792947,0.00021999,4]
[331172021,1720117842403,-739.0207053,0.00021999,4]
[331172024,1720117842415,-500.0,0.00021999,4]
[331172026,1720117842426,-500.0,0.00021999,4]
[331172028,1720117842437,-1391.5,0.00021999,4]
[331172030,1720117842451,-649.35,0.00021999,4]
[331172032,1720117842461,-649.35,0.00021999,4]
[331172034,1720117842470,-3141.16744786,0.00021999,4]
[331172037,1720117842485,-779.58255214,0.00021999,4]
[331172038,1720117842497,-3920.75,0.00021999,4]
[331172039,1720117842508,-423.29295426,0.00021999,4]
[331172040,1720117842522,-76.70704574,0.00021999,4]
[331172041,1720117842532,-288.30712105,0.00021999,4]
[331172042,1720117842546,-211.69287895,0.00021999,4]
[331172043,1720117842556,-500.0,0.00021999,4]
[331172044,1720117842568,-203.18,0.00021999,4]
[331172045,1720117842580,-500.0,0.00021999,4]
[331172047,1720117842596,-72.40021803,0.00021999,4]
[331172049,1720117842611,-1167.56978197,0.00021999,4]
[331172051,1720117842622,-2883.84825415,0.00022,2]
[331172053,1720117842635,-709.08266212,0.00022,2]
[331172055,1720117842647,-2686.0,0.00022,2]
[331172058,1720117842659,-312.783,0.00022,2]
[331172060,1720117842674,-24343.11234941,0.00022,2]
[331172062,1720117842685,-241.33691212,0.00022,2]
[331172065,1720117842696,-1065.98255487,0.00022,2]
[331172067,1720117842709,-793.14485048,0.00022,2]
[331172069,1720117842721,-8536.94737426,0.00022,2]
[331172071,1720117842737,-264.135,0.00022,2]
[331172074,1720117842750,-3597.56620416,0.00022,2]
[331172076,1720117842762,-358.9537836,0.00022,2]
[331172091,1720117842893,-5777.11384766,0.00022,2]
[331172114,1720117843031,-4327.96367608,0.00022,2]
[331172117,1720117843044,-4288.99875129,0.00022,2]
[331172121,1720117843057,-113781.67789954,0.00022,2]
[331172125,1720117843069,-4623.27920584,0.00022,2]
[331172129,1720117843081,-500.87490691,0.00022,2]
[331172133,1720117843094,-2035.54060394,0.00022,2]
[331172136,1720117843106,-1107.68259837,0.00022,2]
[331172138,1720117843119,-3020.41878,0.00022,2]
[331172140,1720117843131,-421.92185612,0.00022,2]
[331172143,1720117843143,-600.0,0.00022,2]
[331172145,1720117843155,-96756.92551223,0.00022,2]
[331172147,1720117843165,-159.64043736,0.00022,2]
[331172149,1720117843175,-3000.0,0.00022,2]
[331172151,1720117843186,-179.614179,0.00022,7]
[331172154,1720117843196,-241.786989,0.00022,7]
[331172156,1720117843206,-151.0,0.00022,7]
[331172158,1720117843216,-151.0,0.00022,7]
[331172160,1720117843227,-157.762428,0.00022,7]
[331172162,1720117843237,-151.0,0.00022,7]
[331172164,1720117843250,-243.883889,0.00022,7]
[331172166,1720117843261,-151.0,0.00022,7]
[331172169,1720117843271,-151.0,0.00022,7]
[331172171,1720117843281,-151.0,0.00022,7]
[331172173,1720117843291,-151.0,0.00022,7]
[331172175,1720117843301,-151.0,0.00022,7]
[331172177,1720117843311,-151.0,0.00022,7]
[331172179,1720117843321,-151.0,0.00022,7]
[331172181,1720117843331,-169.93973,0.00022,7]
[331172183,1720117843342,-169.93973,0.00022,7]
[331172186,1720117843352,-151.0,0.00022,7]
[331172188,1720117843362,-315.8,0.00022,2]
[331172190,1720117843372,-151.0,0.00022,7]
[331172192,1720117843382,-151.0,0.00022,7]
[331172194,1720117843392,-151.0,0.00022,7]
[331172196,1720117843404,-151.0,0.00022,7]
[331172198,1720117843414,-285.050224,0.00022,7]
[331172200,1720117843425,-151.0,0.00022,7]
[331172202,1720117843437,-151.0,0.00022,7]
[331172205,1720117843451,-151.0,0.00022,7]
[331172207,1720117843463,-151.0,0.00022,7]
[331172209,1720117843474,-280.25348,0.00022,7]
[331172211,1720117843485,-306.662129,0.00022,7]
[331172213,1720117843496,-306.662129,0.00022,7]
[331172215,1720117843508,-241.204496,0.00022,7]
[331172217,1720117843518,-333.59866,0.00022,7]
[331172219,1720117843528,-151.0,0.00022,7]
[331172221,1720117843539,-333.59866,0.00022,7]
[331172223,1720117843549,-282.674538,0.00022,7]
[331172226,1720117843560,-151.0,0.00022,7]
[331172228,1720117843573,-151.0,0.00022,7]
[331172230,1720117843584,-282.674538,0.00022,7]
[331172232,1720117843595,-151.0,0.00022,7]
[331172234,1720117843606,-151.0,0.00022,7]
[331172236,1720117843617,-2260.054881,0.00022,7]
[331172238,1720117843628,-151.0,0.00022,7]
[331172240,1720117843639,-151.0,0.00022,7]
[331172243,1720117843650,-2260.054881,0.00022,7]
[331172245,1720117843661,-151.0,0.00022,7]
[331172247,1720117843672,-151.0,0.00022,7]
[331172249,1720117843683,-151.0,0.00022,7]
[331172251,1720117843693,-151.0,0.00022,7]
[331172253,1720117843708,-151.0,0.00022,7]
[331172255,1720117843719,-151.0,0.00022,7]
[331172258,1720117843730,-253.133743,0.00022,7]
[331172260,1720117843741,-151.0,0.00022,7]
[331172262,1720117843752,-1457.296038,0.00022,7]
[331172264,1720117843764,-1457.296038,0.00022,7]
[331172266,1720117843774,-151.0,0.00022,7]
[331172268,1720117843784,-151.0,0.00022,7]
[331172270,1720117843794,-223.84138,0.00022,7]
[331172273,1720117843805,-223.84138,0.00022,7]
[331172275,1720117843815,-171.193417,0.00022,7]
[331172277,1720117843827,-171.193417,0.00022,7]
[331172279,1720117843835,-151.0,0.00022,7]
[331172281,1720117843845,-380.645891,0.00022,7]
[331172283,1720117843855,-380.645891,0.00022,7]
[331172285,1720117843864,-151.0,0.00022,7]
[331172287,1720117843872,-151.14620272,0.00022002,2]
[331172289,1720117843882,-155.88000793,0.0002201,2]
[331172291,1720117843891,-157.653021,0.00022016,2]
[331172293,1720117843900,-253.680353,0.00022025,2]
[331172295,1720117843910,-2088.582776,0.00022025,2]
[331172297,1720117843919,-168.287633,0.00022025,2]
[331172299,1720117843928,-210.193345,0.00022025,2]
[331172302,1720117843937,-1040.348546,0.00022025,2]
[331172305,1720117843948,-603.584751,0.00022025,2]
[331172308,1720117843958,-183.419635,0.00022025,2]
[331172311,1720117843967,-492.438335,0.00022025,2]
[331172315,1720117843977,-168.287633,0.00022025,2]
[331172319,1720117843987,-522.145694,0.00022025,2]
[331172323,1720117843996,-260.087137,0.00022025,2]
[331172326,1720117844006,-150.896188,0.00022025,2]
[331172329,1720117844017,-174.048564,0.00022025,2]
[331172331,1720117844027,-150.896187,0.00022025,2]
[331172333,1720117844037,-150.951581,0.00022025,2]
[331172335,1720117844046,-298.447475,0.00022025,2]
[331172337,1720117844055,-939.862249,0.00022025,2]
[331172339,1720117844064,-168.287633,0.00022025,2]
[331172341,1720117844073,-468.156845,0.00022025,2]
[331172343,1720117844082,-150.896188,0.00022025,2]
[331172345,1720117844091,-187.97245,0.00022025,2]
[331172347,1720117844101,-187.262738,0.00022025,2]
[331172349,1720117844110,-150.896188,0.00022025,2]
[331172351,1720117844119,-198.964983,0.00022025,2]
[331172353,1720117844128,-410.754612,0.00022025,2]
[331172355,1720117844138,-101.66080947,0.00022025,2]
[331172359,1720117844163,-151.0,0.00022,7]
[331172361,1720117844173,-54.39147353,0.00022025,2]
[331172363,1720117844182,-150.896188,0.00022025,2]
[331172365,1720117844191,-182.060995,0.00022025,2]
[331172367,1720117844202,-168.287633,0.00022025,2]
[331172369,1720117844211,-222.782163,0.00022025,2]
[331172371,1720117844222,-150.896187,0.00022025,2]
[331172373,1720117844232,-4755.271782,0.00022025,2]
[331172375,1720117844241,-150.0,0.00022029,2]
[331172377,1720117844251,-471.55,0.00022029,2]
[331172379,1720117844262,-424.37,0.00022029,2]
[331172409,1720117844527,-702.78,0.00022029,2]
[331172412,1720117844546,-528.33,0.00022029,2]
[331172415,1720117844561,-153.66595411,0.00022034,2]
[331172417,1720117844572,-156.07649358,0.00022049,2]
[331172419,1720117844582,-12768.60419298,0.00022053,3]
[331172421,1720117844591,-3600.93142325,0.00022066,2]
[331172423,1720117844600,-633.12,0.00022089,4]
[331172425,1720117844611,-1427.13,0.00022089,4]
[331172427,1720117844620,-1191.94,0.00022089,4]
[331172429,1720117844629,-1235.5,0.00022089,4]
[331172431,1720117844639,-500.0,0.00022089,4]
[331172433,1720117844649,-1391.5,0.00022089,4]
[331172435,1720117844660,-1239.97,0.00022089,4]
[331172437,1720117844669,-2001.18117671,0.0002209,2]
[331172439,1720117844678,-150.10920567,0.0002209,2]
[331172441,1720117844687,-173.9811603,0.000221,2]
[331172443,1720117844698,-343.17626663,0.00022108,2]
[331172445,1720117844707,-321.78523206,0.00022108,2]
[331172447,1720117844716,-226.34311837,0.0002211,2]
[331172449,1720117844725,-160.08497075,0.00022123,2]
[331172451,1720117844735,-343.17626663,0.00022125,2]
[331172453,1720117844744,-500.0,0.00022126,2]
[331172455,1720117844754,-157.65369,0.00022128,2]
[331172457,1720117844763,-1057.0,0.00022129,2]
[331172459,1720117844772,-500.0,0.00022135,2]
[331172461,1720117844781,-2000.0,0.00022136,2]
[331172463,1720117844790,-200.0,0.00022136,2]
[331172465,1720117844799,-222.29527862,0.00022136,2]
[331172466,1720117844807,-153.66595411,0.00022142,2]
[331172468,1720117844816,-500.0,0.00022144,2]
[331172471,1720117844826,-160.08497075,0.00022149,2]
[331172473,1720117844835,-500.0,0.00022153,2]
[331172475,1720117844844,-3600.93142325,0.00022158,2]
[331172476,1720117844853,-500.0,0.00022162,2]
[331172479,1720117844863,-500.0,0.0002217,2]
[331172481,1720117844873,-156.07649358,0.00022172,2]
[331172483,1720117844883,-222.29527862,0.00022172,2]
[331172485,1720117844892,-157.98586345,0.00022175,2]
[331172486,1720117844901,-161.79573037,0.00022177,2]
[331172489,1720117844910,-500.0,0.00022179,2]
[331172491,1720117844919,-595.22133576,0.00022181,2]
[331172492,1720117844929,-321.78523206,0.00022184,2]
[331172494,1720117844938,-343.17626663,0.00022185,2]
[331172496,1720117844947,-500.0,0.00022188,2]
[331172498,1720117844956,-157.98586345,0.00022195,2]
[331172500,1720117844965,-320.26650413,0.00022195,2]
[331172502,1720117844974,-500.0,0.00022197,2]
[331172503,1720117844984,-1141.7114462,0.00022199,10]
[331172504,1720117844993,-1152.31990522,0.00022199,10]
[331172505,1720117845002,-500.0,0.00022199,4]
[331172506,1720117845011,-500.0,0.00022199,4]
[331172507,1720117845021,-500.0,0.00022199,4]
[331172508,1720117845030,-500.0,0.00022199,4]
[331172509,1720117845039,-500.0,0.00022199,4]
[331172510,1720117845048,-500.0,0.00022199,4]
[331172511,1720117845057,-150.0,0.00022199,2]
[331172512,1720117845066,-500.0,0.00022199,4]
[331172514,1720117845075,-500.0,0.00022199,4]
[331172516,1720117845085,-500.0,0.00022199,4]
[331172518,1720117845094,-500.0,0.00022199,4]
[331172520,1720117845103,-500.0,0.00022199,4]
[331172522,1720117845112,-500.0,0.00022199,4]
[331172524,1720117845121,-500.0,0.00022199,4]
[331172526,1720117845130,-50050.0,0.000222,2]
[331172528,1720117845139,-155.88000793,0.00022201,2]
[331172530,1720117845148,-500.0,0.00022206,2]
[331172532,1720117845160,-500.0,0.00022214,2]
[331172534,1720117845172,-155.63264425,0.00022215,2]
[331172536,1720117845192,-500.0,0.00022223,2]
[331172538,1720117845203,-500.0,0.00022232,2]
[331172540,1720117845212,-500.0,0.00022235,2]
[331172542,1720117845221,-222.29527862,0.00022237,2]
[331172544,1720117845232,-500.0,0.00022241,2]
[331172546,1720117845242,-18124.5967001,0.00022242,2]
[331172548,1720117845252,-500.0,0.00022244,2]
[331172550,1720117845262,-3600.93142325,0.00022249,2]
[331172552,1720117845271,-500.0,0.0002225,2]
[331172554,1720117845280,-595.22133576,0.00022251,2]
[331172556,1720117845289,-500.0,0.00022252,2]
[331172557,1720117845298,-500.0,0.00022258,2]
[331172560,1720117845307,-500.0,0.00022261,2]
[331172562,1720117845317,-161.79573038,0.00022265,2]
[331172564,1720117845326,-500.0,0.00022267,2]
[331172566,1720117845335,-500.0,0.00022269,2]
[331172568,1720117845345,-500.0,0.0002227,2]
[331172570,1720117845354,-151.0,0.00022272,7]
[331172572,1720117845363,-157.762428,0.00022272,7]
[331172573,1720117845372,-157.762428,0.00022272,7]
[331172575,1720117845381,-151.0,0.00022272,7]
[331172577,1720117845391,-243.883889,0.00022272,7]
[331172579,1720117845400,-151.0,0.00022272,7]
[331172582,1720117845409,-151.0,0.00022272,7]
[331172584,1720117845419,-213.976188,0.00022272,7]
[331172586,1720117845428,-151.0,0.00022272,7]
[331172588,1720117845438,-151.0,0.00022272,7]
[331172589,1720117845449,-151.0,0.00022272,7]
[331172591,1720117845459,-169.93973,0.00022272,7]
[331172593,1720117845469,-169.93973,0.00022272,7]
[331172595,1720117845478,-151.0,0.00022272,7]
[331172598,1720117845488,-151.0,0.00022272,7]
[331172599,1720117845498,-151.0,0.00022272,7]
[331172601,1720117845507,-150.0,0.00022274,2]
[331172603,1720117845516,-150.0,0.00022274,2]
[331172606,1720117845526,-150.0,0.00022274,2]
[331172608,1720117845535,-150.0,0.00022274,2]
[331172610,1720117845545,-150.0,0.00022274,2]
[331172612,1720117845555,-202.50205,0.00022274,2]
[331172613,1720117845564,-150.0,0.00022274,2]
[331172616,1720117845575,-150.27446,0.00022274,2]
[331172618,1720117845588,-500.0,0.00022275,4]
[331172619,1720117845597,-500.0,0.00022275,4]
[331172622,1720117845607,-500.0,0.00022275,4]
[331172624,1720117845618,-3920.75,0.00022275,4]
[331172626,1720117845627,-500.0,0.00022276,2]
[331172627,1720117845637,-500.0,0.00022278,2]
[331172630,1720117845647,-500.0,0.00022279,2]
[331172632,1720117845656,-500.0,0.00022285,2]
[331172634,1720117845668,-500.0,0.00022287,2]
[331172636,1720117845679,-500.0,0.00022288,2]
[331172638,1720117845688,-222.29527862,0.00022289,2]
[331172639,1720117845702,-500.0,0.00022294,2]
[331172642,1720117845711,-188.25830506,0.00022294,2]
[331172644,1720117845720,-500.0,0.00022295,2]
[331172646,1720117845730,-500.0,0.00022296,2]
[331172648,1720117845739,-343.17626663,0.00022296,2]
[331172650,1720117845748,-500.0,0.00022296,2]
[331172652,1720117845758,-799.0,0.00022298,2]
[331172654,1720117845766,-1122.3215511,0.00022298,2]
[331172656,1720117845775,-500.0,0.00022302,2]
[331172658,1720117845785,-500.0,0.00022304,2]
[331172660,1720117845795,-151.0,0.00022304,2]
[331172662,1720117845804,-500.0,0.00022305,2]
[331172664,1720117845813,-500.0,0.00022305,2]
[331172666,1720117845823,-321.78523206,0.00022311,2]
[331172668,1720117845832,-500.0,0.00022311,2]
[331172670,1720117845843,-500.0,0.00022312,2]
[331172672,1720117845852,-500.0,0.00022313,2]
[331172674,1720117845861,-500.0,0.00022314,2]
[331172675,1720117845871,-500.0,0.0002232,2]
[331172678,1720117845881,-500.0,0.00022321,2]
[331172680,1720117845891,-500.0,0.00022322,2]
[331172682,1720117845900,-500.0,0.00022323,2]
[331172684,1720117845910,-500.0,0.00022329,2]
[331172686,1720117845919,-500.0,0.0002233,2]
[331172688,1720117845928,-500.0,0.00022331,2]
[331172690,1720117845938,-156.07649358,0.00022331,2]
[331172692,1720117845949,-500.0,0.00022332,2]
[331172694,1720117845959,-500.0,0.00022332,2]
[331172695,1720117845968,-500.0,0.00022338,2]
[331172698,1720117845978,-500.0,0.00022339,2]
[331172700,1720117845988,-500.0,0.0002234,2]
[331172702,1720117845998,-500.0,0.0002234,2]
[331172704,1720117846008,-500.0,0.00022341,2]
[331172707,1720117846018,-3600.93142325,0.00022341,2]
[331172709,1720117846027,-152.34506416,0.00022342,2]
[331172711,1720117846036,-500.0,0.00022346,2]
[331172713,1720117846046,-1122.3215511,0.00022347,2]
[331172715,1720117846055,-500.0,0.00022348,2]
[331172717,1720117846064,-500.0,0.00022349,2]
[331172719,1720117846074,-500.0,0.00022349,2]
[331172722,1720117846084,-500.0,0.00022349,2]
[331172723,1720117846093,-166.66666666,0.00022352,2]
[331172726,1720117846103,-500.0,0.00022355,2]
[331172727,1720117846112,-500.0,0.00022356,2]
[331172730,1720117846121,-500.0,0.00022357,2]
[331172732,1720117846131,-500.0,0.00022358,2]
[331172733,1720117846140,-2000.0,0.00022358,2]
[331172736,1720117846150,-200.0,0.00022358,2]
[331172738,1720117846160,-500.0,0.00022358,2]
[331172740,1720117846169,-16000.0,0.00022364,2]
[331172742,1720117846178,-151.0,0.00022364,7]
[331172744,1720117846188,-269.028388,0.00022364,7]
[331172746,1720117846197,-282.674538,0.00022364,7]
[331172748,1720117846208,-264.068554,0.00022364,7]
[331172750,1720117846217,-282.674538,0.00022364,7]
[331172751,1720117846227,-151.0,0.00022364,7]
[331172753,1720117846236,-343.17626663,0.00022364,2]
[331172755,1720117846247,-151.0,0.00022364,7]
[331172757,1720117846258,-2260.054881,0.00022364,7]
[331172760,1720117846267,-151.0,0.00022364,7]
[331172761,1720117846277,-151.0,0.00022364,7]
[331172764,1720117846286,-2260.054881,0.00022364,7]
[331172766,1720117846296,-151.0,0.00022364,7]
[331172767,1720117846305,-233.5584,0.00022364,7]
[331172769,1720117846314,-151.0,0.00022364,7]
[331172772,1720117846324,-151.0,0.00022364,7]
[331172773,1720117846332,-260.262568,0.00022364,7]
[331172775,1720117846342,-1457.296038,0.00022364,7]
[331172777,1720117846351,-1457.296038,0.00022364,7]
[331172780,1720117846360,-151.0,0.00022364,7]
[331172781,1720117846370,-151.0,0.00022364,7]
[331172783,1720117846379,-223.84138,0.00022364,7]
[331172785,1720117846388,-223.84138,0.00022364,7]
[331172787,1720117846398,-171.193417,0.00022364,7]
[331172789,1720117846407,-171.193417,0.00022364,7]
[331172791,1720117846417,-380.645891,0.00022364,7]
[331172793,1720117846426,-380.645891,0.00022364,7]
[331172796,1720117846436,-500.0,0.00022364,2]
[331172798,1720117846445,-500.0,0.00022365,2]
[331172800,1720117846459,-649.35,0.00022366,4]
[331172802,1720117846468,-500.0,0.00022366,4]
[331172804,1720117846477,-500.0,0.00022366,2]
[331172806,1720117846487,-500.0,0.00022367,2]
[331172808,1720117846496,-155.63264425,0.00022367,2]
[331172810,1720117846506,-156.07649358,0.00022367,2]
[331172812,1720117846516,-1427.13,0.00022372,4]
[331172814,1720117846526,-1391.5,0.00022372,4]
[331172816,1720117846536,-16000.0,0.00022373,2]
[331172818,1720117846546,-500.0,0.00022373,2]
[331172820,1720117846556,-151.0,0.00022373,7]
[331172822,1720117846566,-151.0,0.00022373,7]
[331172824,1720117846578,-151.0,0.00022373,7]
[331172826,1720117846592,-151.0,0.00022373,7]
[331172828,1720117846601,-306.662129,0.00022373,7]
[331172830,1720117846611,-306.662129,0.00022373,7]
[331172833,1720117846625,-241.204496,0.00022373,7]
[331172835,1720117846635,-333.59866,0.00022373,7]
[331172837,1720117846645,-333.59866,0.00022373,7]
[331172839,1720117846655,-151.0,0.00022373,7]
[331172841,1720117846668,-500.0,0.00022374,2]
[331172843,1720117846678,-500.0,0.00022375,2]
[331172845,1720117846687,-500.0,0.00022376,2]
[331172847,1720117846696,-177.67367637,0.00022385,2]
[331172849,1720117846711,-633.12,0.00022399,4]
[331172851,1720117846721,-500.0,0.00022399,4]
[331172853,1720117846730,-1000.0,0.000224,2]
[331172855,1720117846740,-1000.0,0.000224,2]
[331172857,1720117846749,-1000.0,0.000224,2]
[331172859,1720117846759,-1000.0,0.000224,2]
[331172861,1720117846769,-1000.0,0.000224,2]
[331172863,1720117846778,-1000.0,0.000224,2]
[331172865,1720117846788,-1000.0,0.000224,2]
[331172867,1720117846797,-1000.0,0.000224,2]
[331172869,1720117846807,-1000.0,0.000224,2]
[331172871,1720117846816,-1000.0,0.000224,2]
[331172873,1720117846825,-1010.56,0.000224,2]
[331172875,1720117846834,-351.14909226,0.000224,2]
[331172877,1720117846843,-1451.94208417,0.000224,2]
[331172879,1720117846852,-968.98196741,0.000224,2]
[331172881,1720117846862,-197.59758404,0.000224,2]
[331172883,1720117846871,-5569.0948755,0.000224,2]
[331172885,1720117846880,-153.17196204,0.00022401,2]
[331172887,1720117846889,-321.78523206,0.00022411,2]
[331172889,1720117846899,-595.22133576,0.00022432,2]